{"text_format":"1","workbook":"xlsx","n_sheets":3,"sheets":["стр1","Лист1","Лист2"],"not_rendered":{"charts":0,"images":0,"macros":1,"external_links":1,"defined_names":1,"comments":0,"pivot_tables":0},"unopened":[],"bounds":{"document_bytes":16777216,"sheet_cells":100000,"rows_first":2000,"rows_last":500,"rows_between":2000,"halvings":0,"cell_chars":16384,"cell_head_chars":4096},"cells_cut":0,"cells_raw":0,"read":"whole","date_system":"1900"}

{"sheet":"стр1","index":0,"n_rows":33,"n_cols":102,"rows_kept":33,"cut":false,"hidden":false,"merged":[[2,74,2,113],[26,0,26,62],[31,0,31,13],[14,6,14,39],[18,29,18,39],[28,77,29,89],[12,53,12,64],[14,59,17,64],[8,101,8,113],[3,74,3,113],[4,50,4,64],[5,50,5,64],[7,50,8,64],[5,74,5,113],[18,0,18,5],[18,6,18,9],[1,74,1,112],[5,0,5,35],[9,99,9,105],[9,78,9,98],[14,0,17,5],[15,10,17,18],[15,6,17,9],[15,74,15,113],[16,74,16,113],[15,29,17,39],[12,74,12,113],[13,83,13,113],[14,74,14,113],[14,40,17,48],[14,49,17,58],[12,42,12,52],[18,10,18,18],[18,19,18,28],[6,50,6,64],[6,0,6,38],[7,0,7,38],[8,0,8,49],[9,0,9,49],[15,19,17,28],[10,53,11,64],[10,42,11,52],[18,80,18,96],[18,102,18,106],[19,80,19,96],[18,40,18,48],[18,49,18,58],[18,59,18,64],[0,66,34,70],[33,81,33,89],[33,91,33,104],[34,81,34,89],[34,91,34,104],[31,90,31,98],[32,90,32,98],[31,100,31,113],[32,100,32,113],[11,83,11,113],[20,10,20,64],[20,74,20,113],[27,10,27,64],[21,74,21,113],[22,10,22,64],[23,0,23,64],[22,74,22,113],[23,74,23,96],[23,97,23,101],[23,102,23,106],[24,84,24,113],[24,7,24,64],[25,7,25,64],[26,76,26,79],[26,82,26,96],[26,98,26,103],[33,18,33,29],[33,33,33,57],[34,18,34,29],[34,33,34,57],[29,11,29,64],[31,18,31,29],[31,33,31,57],[32,18,32,29],[32,33,32,57]]}
[null,null,null,null,null,null,null,null,null,null,null,null,null,null,null,null,null,null,null,null,null,null,null,null,null,null,null,null,null,null,null,null,null,"Унифицированная форма № КО-1",null,null,null,null,null,null,null,null,null,null,null,null,null,null,null,null,null,null,null,null,null,null,null,null,null,null,null,null,null,null,null,null,"Л    и    н     и     я              о     т     р     е     з     а"]
[null,null,null,null,null,null,null,null,null,null,null,null,null,null,null,null,null,null,null,null,null,null,null,null,null,null,null,null,null,null,null,null,null,"Утверждена постановлением Госкомстата"]
[null,null,null,null,null,null,null,null,null,null,null,null,null,null,null,null,null,null,null,null,null,null,null,null,null,null,null,null,null,null,null,null,null,"России от 18.08.98 № 88"]
[null,null,null,null,null,null,null,null,null,null,null,null,null,null,null,null,null,null,null,null,null,null,null,null,null,null,null,null,null,null,null,null,null,null,null,null,null,null,null,null,null,null,null,null,null,null,null,null,null,null,null,null,null,null,null,null,null,null,null,null,null,null,null,null,null,null,null,null,null,null,null,null,null,null,"(организация)"]
[null,null,null,null,null,null,null,null,null,null,null,null,null,null,null,null,null,null,null,null,null,null,null,null,null,null,null,null,null,null,null,null,null,null,null,null,null,null,null,null,null,null,null,null,null,null,null,null,null,null,"Код"]
[null,null,null,null,null,null,null,null,null,null,null,null,null,null,null,null,null,null,null,null,null,null,null,null,null,null,null,null,null,null,null,null,null,null,null,null,null,null,null,null,null,null,null,null,null,null,null,null,"Форма по ОКУД",null,"0310001",null,null,null,null,null,null,null,null,null,null,null,null,null,null,null,null,null,null,null,null,null,null,null,"КВИТАНЦИЯ"]
[null,null,null,null,null,null,null,null,null,null,null,null,null,null,null,null,null,null,null,null,null,null,null,null,null,null,null,null,null,null,null,null,null,null,null,null,null,null,null,null,null,null,null,null,null,null,null,null,"по ОКПО"]
["(организация)"]
[null,null,null,null,null,null,null,null,null,null,null,null,null,null,null,null,null,null,null,null,null,null,null,null,null,null,null,null,null,null,null,null,null,null,null,null,null,null,null,null,null,null,null,null,null,null,null,null,null,null,null,null,null,null,null,null,null,null,null,null,null,null,null,null,null,null,null,null,null,null,null,null,null,null,"к приходному кассовому ордеру №",null,null,null,null,null,null,null,null,null,null,null,null,null,null,null,null,null,null,null,null,null,null,null,null,null,null,22]
["(структурное подразделение)",null,null,null,null,null,null,null,null,null,null,null,null,null,null,null,null,null,null,null,null,null,null,null,null,null,null,null,null,null,null,null,null,null,null,null,null,null,null,null,null,null,null,null,null,null,null,null,null,null,null,null,null,null,null,null,null,null,null,null,null,null,null,null,null,null,null,null,null,null,null,null,null,null,"от  ",null,null,null,{"$f":"TODAY()","v":"2019-11-14"}]
[null,null,null,null,null,null,null,null,null,null,null,null,null,null,null,null,null,null,null,null,null,null,null,null,null,null,null,null,null,null,null,null,null,null,null,null,null,null,null,null,null,null,"Номер документа",null,null,null,null,null,null,null,null,null,null,"Дата составления"]
[null,null,null,null,null,null,null,null,null,null,null,null,null,null,null,null,null,null,null,null,null,null,null,null,null,null,null,null,null,null,null,null,null,null,null,null,null,null,null,null,null,null,null,null,null,null,null,null,null,null,null,null,null,null,null,null,null,null,null,null,null,null,null,null,null,null,null,null,null,null,null,null,null,null,"Принято от",null,null,null,null,null,null,null,null,"aaaaaa"]
[null,null,null,null,null,null,null,null,null,null,null,null,null,null,null,null,null,null,null,null,null,null,null,null,null,null,null,null,null,null,null,null,null,null,null,null,null,null,null,null,"ПРИХОДНЫЙ КАССОВЫЙ ОРДЕР",null,{"$f":"CX9","v":22},null,null,null,null,null,null,null,null,null,null,{"$f":"TODAY()","v":"2019-11-14"}]
[null,null,null,null,null,null,null,null,null,null,null,null,null,null,null,null,null,null,null,null,null,null,null,null,null,null,null,null,null,null,null,null,null,null,null,null,null,null,null,null,null,null,null,null,null,null,null,null,null,null,null,null,null,null,null,null,null,null,null,null,null,null,null,null,null,null,null,null,null,null,null,null,null,null,"Основание:",null,null,null,null,null,null,null,null,"Соглашение на защиту"]
["Дебет",null,null,null,null,null,"Кредит",null,null,null,null,null,null,null,null,null,null,null,null,null,null,null,null,null,null,null,null,null,null,null,null,null,null,null,null,null,null,null,null,null,"Сумма,\nруб. коп.",null,null,null,null,null,null,null,null,"Код целевого назначения"]
[null,null,null,null,null,null,null,null,null,null,"код струк-турного под-разделения",null,null,null,null,null,null,null,null,"корреспон-дирующий счет, субсчет",null,null,null,null,null,null,null,null,null,"код аналити-ческого учета"]
[]
[]
[null,null,null,null,null,null,null,null,null,null,null,null,null,null,null,null,null,null,null,null,null,null,null,null,null,null,null,null,null,null,null,null,null,null,null,null,null,null,null,null,{"$f":"CC19","v":10000},null,null,null,null,null,null,null,null,null,null,null,null,null,null,null,null,null,null,null,null,null,null,null,null,null,null,null,null,null,null,null,null,null,"Сумма",null,null,null,null,null,10000,null,null,null,null,null,null,null,null,null,null,null,null,null,null,null,null,null,"руб."]
[null,null,null,null,null,null,null,null,null,null,null,null,null,null,null,null,null,null,null,null,null,null,null,null,null,null,null,null,null,null,null,null,null,null,null,null,null,null,null,null,null,null,null,null,null,null,null,null,null,null,null,null,null,null,null,null,null,null,null,null,null,null,null,null,null,null,null,null,null,null,null,null,null,null,null,null,null,null,null,null,"(цифрами)"]
["Принято от",null,null,null,null,null,null,null,null,null,{"$f":"CF12","v":"aaaaaa"},null,null,null,null,null,null,null,null,null,null,null,null,null,null,null,null,null,null,null,null,null,null,null,null,null,null,null,null,null,null,null,null,null,null,null,null,null,null,null,null,null,null,null,null,null,null,null,null,null,null,null,null,null,null,null,null,null,null,null,null,null,null,null,{"$f":"[1]!Сумма_прописью(CC19)","v":{"$error":"#NAME?"}}]
[null,null,null,null,null,null,null,null,null,null,null,null,null,null,null,null,null,null,null,null,null,null,null,null,null,null,null,null,null,null,null,null,null,null,null,null,null,null,null,null,null,null,null,null,null,null,null,null,null,null,null,null,null,null,null,null,null,null,null,null,null,null,null,null,null,null,null,null,null,null,null,null,null,null,"(прописью)"]
["Основание:",null,null,null,null,null,null,null,null,null,{"$f":"CF14","v":"Соглашение на защиту"}]
[{"$f":"BW15","v":0}]
["Сумма",null,null,null,null,null,null,null,null,null,null,null,null,null,null,null,null,null,null,null,null,null,null,null,null,null,null,null,null,null,null,null,null,null,null,null,null,null,null,null,null,null,null,null,null,null,null,null,null,null,null,null,null,null,null,null,null,null,null,null,null,null,null,null,null,null,null,null,null,null,null,null,null,null,"В том числе"]
[null,null,null,null,null,null,null,"(прописью)"]
[{"$f":"[1]!Сумма_прописью(AO19)","v":{"$error":"#NAME?"}},null,null,null,null,null,null,null,null,null,null,null,null,null,null,null,null,null,null,null,null,null,null,null,null,null,null,null,null,null,null,null,null,null,null,null,null,null,null,null,null,null,null,null,null,null,null,null,null,null,null,null,null,null,null,null,null,null,null,null,null,null,null,null,null,null,null,null,null,null,null,null,null,null,null,null,null,null,null,null,null,null,{"$f":"TODAY()","v":"2019-11-14"}]
["В том числе"]
[null,null,null,null,null,null,null,null,null,null,null,null,null,null,null,null,null,null,null,null,null,null,null,null,null,null,null,null,null,null,null,null,null,null,null,null,null,null,null,null,null,null,null,null,null,null,null,null,null,null,null,null,null,null,null,null,null,null,null,null,null,null,null,null,null,null,null,null,null,null,null,null,null,null,null,null,null,"М.П. (штампа)"]
["Приложение"]
[]
["Адвокат",null,null,null,null,null,null,null,null,null,null,null,null,null,null,null,null,null,null,null,null,null,null,null,null,null,null,null,null,null,null,null,null,null,null,null,null,null,null,null,null,null,null,null,null,null,null,null,null,null,null,null,null,null,null,null,null,null,null,null,null,null,null,null,null,null,null,null,null,null,null,null,null,null,"Адвокат"]
[null,null,null,null,null,null,null,null,null,null,null,null,null,null,null,null,null,null,"(подпись)",null,null,null,null,null,null,null,null,null,null,null,null,null,null,"(расшифровка подписи)",null,null,null,null,null,null,null,null,null,null,null,null,null,null,null,null,null,null,null,null,null,null,null,null,null,null,null,null,null,null,null,null,null,null,null,null,null,null,null,null,null,null,null,null,null,null,null,null,null,null,null,null,null,null,null,null,"(подпись)",null,null,null,null,null,null,null,null,null,"(расшифровка подписи)"]

{"sheet":"Лист1","index":1,"n_rows":4,"n_cols":1,"rows_kept":4,"cut":false,"hidden":false,"merged":[]}
["Соглашение на защиту"]
["Консультация"]
["Составление заявления"]
["Соглашение по гражданскому делу"]

{"sheet":"Лист2","index":2,"n_rows":30,"n_cols":5,"rows_kept":30,"cut":false,"hidden":false,"merged":[]}
[null,"номер пко ","дата ","фамилия ","сумма"]
[null,{"$f":"IF(C2=\"\",\"\",COUNT($C$2:C2))","v":1},"2019-11-14","eeeeee",500000]
[null,{"$f":"IF(C3=\"\",\"\",COUNT($C$2:C3))","v":2},"2019-11-14","aaaaaa",10000]
[null,{"$f":"IF(C4=\"\",\"\",COUNT($C$2:C4))","v":""}]
[null,{"$f":"IF(C5=\"\",\"\",COUNT($C$2:C5))","v":""}]
[null,{"$f":"IF(C6=\"\",\"\",COUNT($C$2:C6))","v":""}]
[null,{"$f":"IF(C7=\"\",\"\",COUNT($C$2:C7))","v":""}]
[null,{"$f":"IF(C8=\"\",\"\",COUNT($C$2:C8))","v":""}]
[null,{"$f":"IF(C9=\"\",\"\",COUNT($C$2:C9))","v":""}]
[null,{"$f":"IF(C10=\"\",\"\",COUNT($C$2:C10))","v":""}]
[null,{"$f":"IF(C11=\"\",\"\",COUNT($C$2:C11))","v":""}]
[null,{"$f":"IF(C12=\"\",\"\",COUNT($C$2:C12))","v":""}]
[null,{"$f":"IF(C13=\"\",\"\",COUNT($C$2:C13))","v":""}]
[null,{"$f":"IF(C14=\"\",\"\",COUNT($C$2:C14))","v":""}]
[null,{"$f":"IF(C15=\"\",\"\",COUNT($C$2:C15))","v":""}]
[null,{"$f":"IF(C16=\"\",\"\",COUNT($C$2:C16))","v":""}]
[null,{"$f":"IF(C17=\"\",\"\",COUNT($C$2:C17))","v":""}]
[null,{"$f":"IF(C18=\"\",\"\",COUNT($C$2:C18))","v":""}]
[null,{"$f":"IF(C19=\"\",\"\",COUNT($C$2:C19))","v":""}]
[null,{"$f":"IF(C20=\"\",\"\",COUNT($C$2:C20))","v":""}]
[null,{"$f":"IF(C21=\"\",\"\",COUNT($C$2:C21))","v":""}]
[null,{"$f":"IF(C22=\"\",\"\",COUNT($C$2:C22))","v":""}]
[null,{"$f":"IF(C23=\"\",\"\",COUNT($C$2:C23))","v":""}]
[null,{"$f":"IF(C24=\"\",\"\",COUNT($C$2:C24))","v":""}]
[null,{"$f":"IF(C25=\"\",\"\",COUNT($C$2:C25))","v":""}]
[null,{"$f":"IF(C26=\"\",\"\",COUNT($C$2:C26))","v":""}]
[null,{"$f":"IF(C27=\"\",\"\",COUNT($C$2:C27))","v":""}]
[null,{"$f":"IF(C28=\"\",\"\",COUNT($C$2:C28))","v":""}]
[null,{"$f":"IF(C29=\"\",\"\",COUNT($C$2:C29))","v":""}]
[null,{"$f":"IF(C30=\"\",\"\",COUNT($C$2:C30))","v":""}]